[Event "Fast Chess"]
[Site "ChessKid.com"]
[Date "2020.04.08"]
[Round "2"]
[White "Georgiev, Maximilian"]
[Black "Li, Tobias"]
[Result "1-0"]
[ECO "C20"]
[WhiteElo "1389"]
[BlackElo "1230"]
[PlyCount "84"]
[EventDate "2020.??.??"]
[TimeControl "300+50"]
[WhiteClock "0:03:18"]
[BlackClock "0:05:25"]

1. e4 {[%emt 0:00:46]} e5 {[%emt 0:00:47]} 2. f3 {[%emt 0:00:46]} Nf6 {[%emt 0:
00:50]} 3. Nc3 {[%emt 0:00:48]} Nc6 {[%emt 0:00:51]} 4. Bc4 {[%emt 0:00:49]}
Bc5 {[%emt 0:00:49]} 5. Nge2 {[%emt 0:00:49]} O-O {[%emt 0:00:48]} 6. d3 {
[%emt 0:00:51]} d6 {[%emt 0:00:47]} 7. Na4 {[%emt 0:00:48]} b6 {[%emt 0:00:51]}
8. Nxc5 {[%emt 0:00:47]} bxc5 {[%emt 0:00:47]} 9. O-O {[%emt 0:00:47]} Re8 {
[%emt 0:00:57]} 10. Bg5 {[%emt 0:00:48]} h6 {[%emt 0:00:52]} 11. Bh4 {[%emt 0:
00:48]} Be6 {[%emt 0:01:25]} 12. Bd5 {[%emt 0:00:50]} Bxd5 {[%emt 0:00:47]} 13.
exd5 {[%emt 0:00:46]} Nb4 {[%emt 0:00:49]} 14. c4 {[%emt 0:00:51]} g5 {[%emt 0:
01:01]} 15. Bg3 {[%emt 0:00:48]} Rb8 {[%emt 0:00:56]} 16. b3 {[%emt 0:00:52]}
Na6 {[%emt 0:00:51]} 17. a4 {[%emt 0:00:53]} Qd7 {[%emt 0:00:54]} 18. a5 {
[%emt 0:00:49]} c6 {[%emt 0:00:48]} 19. dxc6 {[%emt 0:00:47]} Qxc6 {[%emt 0:00:
46]} 20. Re1 {[%emt 0:00:57]} Nb4 {[%emt 0:00:47]} 21. Rf1 {[%emt 0:00:57]} d5
{[%emt 0:01:10]} 22. cxd5 {[%emt 0:00:47]} Qxd5 {[%emt 0:00:46]} 23. Nc3 {
[%emt 0:00:51]} Qxd3 {[%emt 0:00:51]} 24. Qxd3 {[%emt 0:00:47]} Nxd3 {[%emt 0:
00:47]} 25. Rad1 {[%emt 0:00:52]} Nb4 {[%emt 0:01:03]} 26. Rfe1 {[%emt 0:00:54]
} Nc6 {[%emt 0:00:58]} 27. a6 {[%emt 0:01:02]} Rxb3 {[%emt 0:00:52]} 28. Nd5 {
[%emt 0:00:53]} Nxd5 {[%emt 0:01:05]} 29. Rxd5 {[%emt 0:00:47]} Rb5 {[%emt 0:
00:49]} 30. Bxe5 {[%emt 0:00:51]} Nxe5 {[%emt 0:00:48]} 31. Rdxe5 {[%emt 0:00:
47]} Rxe5 {[%emt 0:00:46]} 32. Rxe5 {[%emt 0:00:47]} Kg7 {[%emt 0:00:50]} 33.
Rd5 {[%emt 0:00:53]} Ra5 {[%emt 0:01:00]} 34. Kf2 {[%emt 0:00:52]} c4 {[%emt 0:
00:49]} 35. Rxa5 {[%emt 0:00:48]} Kg6 {[%emt 0:00:51]} 36. Rc5 {[%emt 0:00:47]}
f6 {[%emt 0:00:47]} 37. Rxc4 {[%emt 0:00:46]} f5 {[%emt 0:00:50]} 38. Rc7 {
[%emt 0:00:48]} h5 {[%emt 0:00:49]} 39. Rxa7 {[%emt 0:00:47]} g4 {[%emt 0:01:
13]} 40. f4 {[%emt 0:00:49]} h4 {[%emt 0:00:47]} 41. h3 {[%emt 0:00:49]} gxh3 {
[%emt 0:00:47]} 42. gxh3 {[%emt 0:00:46]} Kh5 {[%emt 0:00:46] TallSnazzyBall
won by resignation} 1-0

[Event "Fast Chess"]
[Site "ChessKid.com"]
[Date "2020.04.08"]
[Round "3"]
[White "Hlinka, Patricia"]
[Black "Georgiev, Maximilian"]
[Result "0-1"]
[ECO "D00"]
[WhiteElo "942"]
[BlackElo "1390"]
[PlyCount "24"]
[EventDate "2020.??.??"]
[TimeControl "300+50"]
[WhiteClock "0:04:57"]
[BlackClock "0:04:05"]

1. d4 {[%emt 0:00:46]} d5 {[%emt 0:00:47]} 2. e3 {[%emt 0:00:48]} Nf6 {[%emt 0:
00:48]} 3. c3 {[%emt 0:00:53]} e6 {[%emt 0:00:47]} 4. a4 {[%emt 0:00:48]} Be7 {
[%emt 0:00:49]} 5. g4 {[%emt 0:00:50]} e5 {[%emt 0:00:51]} 6. dxe5 {[%emt 0:00:
48]} Bxg4 {[%emt 0:00:47]} 7. Qb3 {[%emt 0:00:57]} Nh5 {[%emt 0:00:56]} 8. h4 {
[%emt 0:00:51]} Be6 {[%emt 0:00:48]} 9. Qxb7 {[%emt 0:00:57]} Nc6 {[%emt 0:01:
01]} 10. Qxc6+ {[%emt 0:00:57]} Bd7 {[%emt 0:00:47]} 11. Qa6 {[%emt 0:00:57]}
O-O {[%emt 0:00:50]} 12. Qe2 {[%emt 0:01:25]} g6 {[%emt 0:00:53]
TallSnazzyBall won by resignation} 0-1

[Event "Fast Chess"]
[Site "ChessKid.com"]
[Date "2020.04.08"]
[Round "3"]
[White "Li, Tobias"]
[Black "Hlinka, Patrick"]
[Result "1-0"]
[ECO "C25"]
[WhiteElo "1235"]
[BlackElo "1088"]
[PlyCount "25"]
[EventDate "2020.??.??"]
[TimeControl "300+50"]
[WhiteClock "0:04:54"]
[BlackClock "0:05:22"]

1. e4 {[%emt 0:00:45]} e5 {[%emt 0:00:46]} 2. Nf3 {[%emt 0:00:47]} Bc5 {
[%emt 0:00:45]} 3. Nc3 {[%emt 0:00:47]} d6 {[%emt 0:00:45]} 4. Bc4 {[%emt 0:00:
50]} Bg4 {[%emt 0:00:46]} 5. O-O {[%emt 0:00:49]} Bxf3 {[%emt 0:00:52]} 6. Qxf3
{[%emt 0:00:49]} Nh6 {[%emt 0:00:49]} 7. d4 {[%emt 0:00:48]} O-O {[%emt 0:00:
48]} 8. dxc5 {[%emt 0:00:48]} d5 {[%emt 0:00:50]} 9. Bxd5 {[%emt 0:00:48]} c6 {
[%emt 0:00:50]} 10. Bxh6 {[%emt 0:00:51]} Qe8 {[%emt 0:01:00]} 11. Qg3 {
[%emt 0:00:51]} g5 {[%emt 0:01:07]} 12. Qxg5+ {[%emt 0:00:49]} Kh8 {[%emt 0:00:
49]} 13. Qg7# {[%emt 0:00:47] OnlyHungryKiwi won by checkmate} 1-0

[Event "Fast Chess"]
[Site "ChessKid.com"]
[Date "2020.04.09"]
[Round "1"]
[White "Li, Tobias"]
[Black "Georgiev, Maximilian"]
[Result "0-1"]
[ECO "B01"]
[WhiteElo "1252"]
[BlackElo "1414"]
[PlyCount "124"]
[EventDate "2020.??.??"]
[TimeControl "600"]
[WhiteClock "0:07:09"]
[BlackClock "0:05:21"]

1. e4 {[%emt 0:00:03]} d5 {[%emt 0:00:01]} 2. d3 {[%emt 0:00:09]} dxe4 {
[%emt 0:00:04]} 3. dxe4 {[%emt 0:00:10]} Qxd1+ {[%emt 0:00:02]} 4. Kxd1 {
[%emt 0:00:01]} Nc6 {[%emt 0:00:03]} 5. Nc3 {[%emt 0:00:01]} Nf6 {[%emt 0:00:
02]} 6. Bf4 {[%emt 0:00:01]} e5 {[%emt 0:00:03]} 7. Bg3 {[%emt 0:00:03]} Bb4 {
[%emt 0:00:03]} 8. Kd2 {[%emt 0:00:03]} Bxc3+ {[%emt 0:00:01]} 9. Kxc3 {
[%emt 0:00:02]} Nxe4+ {[%emt 0:00:01]} 10. Kd3 {[%emt 0:00:05]} Nxg3 {[%emt 0:
00:01]} 11. hxg3 {[%emt 0:00:03]} O-O {[%emt 0:00:01]} 12. Nf3 {[%emt 0:00:02]}
f6 {[%emt 0:00:05]} 13. Kd2 {[%emt 0:00:02]} Bg4 {[%emt 0:00:03]} 14. Rd1 {
[%emt 0:00:03]} Bxf3 {[%emt 0:00:03]} 15. gxf3 {[%emt 0:00:02]} Nd4 {[%emt 0:
00:03]} 16. Be2 {[%emt 0:00:05]} Nxe2 {[%emt 0:00:02]} 17. Kxe2 {[%emt 0:00:02]
} Rfd8 {[%emt 0:00:03]} 18. Rxd8+ {[%emt 0:00:03]} Rxd8 {[%emt 0:00:02]} 19.
Rh4 {[%emt 0:00:20]} a6 {[%emt 0:00:05]} 20. Rc4 {[%emt 0:00:08]} c6 {[%emt 0:
00:03]} 21. Rb4 {[%emt 0:00:18]} Rd7 {[%emt 0:00:02]} 22. a4 {[%emt 0:00:10]}
b5 {[%emt 0:00:05]} 23. axb5 {[%emt 0:00:02]} axb5 {[%emt 0:00:01]} 24. c4 {
[%emt 0:00:02]} bxc4 {[%emt 0:00:02]} 25. Rxc4 {[%emt 0:00:02]} Rd6 {[%emt 0:
00:07]} 26. Rc3 {[%emt 0:00:07]} Kf7 {[%emt 0:00:06]} 27. b4 {[%emt 0:00:08]}
h5 {[%emt 0:00:04]} 28. g4 {[%emt 0:00:03]} hxg4 {[%emt 0:00:02]} 29. fxg4 {
[%emt 0:00:01]} g5 {[%emt 0:00:02]} 30. Ke3 {[%emt 0:00:07]} Ke6 {[%emt 0:00:
04]} 31. Ke4 {[%emt 0:00:17]} Kf7 {[%emt 0:00:18]} 32. f3 {[%emt 0:00:07]} Ke6
{[%emt 0:00:03]} 33. Rc5 {[%emt 0:00:13]} Rd5 {[%emt 0:00:07]} 34. Rxd5 {
[%emt 0:00:11]} cxd5+ {[%emt 0:00:01]} 35. Kd3 {[%emt 0:00:01]} Kd6 {[%emt 0:
00:05]} 36. Kc3 {[%emt 0:00:07]} d4+ {[%emt 0:00:02]} 37. Kc4 {[%emt 0:00:03]}
Kc6 {[%emt 0:00:03]} 38. Kb3 {[%emt 0:00:08]} Kb5 {[%emt 0:00:05]} 39. Ka3 {
[%emt 0:00:11]} d3 {[%emt 0:00:02]} 40. Kb3 {[%emt 0:00:02]} d2 {[%emt 0:00:02]
} 41. Kc2 {[%emt 0:00:02]} Kxb4 {[%emt 0:00:01]} 42. Kxd2 {[%emt 0:00:01]} Kc4
{[%emt 0:00:00]} 43. Ke3 {[%emt 0:00:01]} Kd5 {[%emt 0:00:01]} 44. Kd3 {
[%emt 0:00:01]} Ke6 {[%emt 0:00:02]} 45. Ke4 {[%emt 0:00:02]} Kf7 {[%emt 0:00:
05]} 46. Kf5 {[%emt 0:00:01]} Ke7 {[%emt 0:00:02]} 47. Ke4 {[%emt 0:00:04]} Ke6
{[%emt 0:00:01]} 48. Ke3 {[%emt 0:00:03]} f5 {[%emt 0:00:01]} 49. gxf5+ {
[%emt 0:00:08]} Kxf5 {[%emt 0:00:01]} 50. Kf2 {[%emt 0:00:01]} Kf4 {[%emt 0:00:
02]} 51. Ke2 {[%emt 0:00:02]} e4 {[%emt 0:00:02]} 52. fxe4 {[%emt 0:00:01]}
Kxe4 {[%emt 0:00:02]} 53. Kf2 {[%emt 0:00:01]} Kf4 {[%emt 0:00:04]} 54. Kg2 {
[%emt 0:00:01]} Kg4 {[%emt 0:00:01]} 55. Kf2 {[%emt 0:00:01]} Kh3 {[%emt 0:00:
01]} 56. Kg1 {[%emt 0:00:12]} g4 {[%emt 0:00:01]} 57. Kh1 {[%emt 0:00:02]} Kg3
{[%emt 0:00:03]} 58. Kg1 {[%emt 0:00:01]} Kf3 {[%emt 0:00:01]} 59. Kf1 {
[%emt 0:00:03]} g3 {[%emt 0:00:02]} 60. Kg1 {[%emt 0:00:01]} g2 {[%emt 0:00:03]
} 61. Kh2 {[%emt 0:00:01]} Kf2 {[%emt 0:00:01]} 62. Kh3 {[%emt 0:00:02]} g1=Q {
[%emt 0:00:02] TallSnazzyBall won by resignation} 0-1

[Event "Fast Chess"]
[Site "ChessKid.com"]
[Date "2020.04.09"]
[Round "1"]
[White "Sasse, Gabriel"]
[Black "Dai, Lana"]
[Result "0-1"]
[ECO "C50"]
[WhiteElo "1258"]
[BlackElo "1249"]
[PlyCount "68"]
[EventDate "2020.??.??"]
[TimeControl "600"]
[WhiteClock "0:04:56"]
[BlackClock "0:07:30"]

1. e4 {[%emt 0:00:00]} e5 {[%emt 0:00:02]} 2. Nf3 {[%emt 0:00:01]} Nc6 {
[%emt 0:00:03]} 3. Bc4 {[%emt 0:00:00]} Bc5 {[%emt 0:00:07]} 4. Nc3 {[%emt 0:
00:03]} d6 {[%emt 0:00:15]} 5. h3 {[%emt 0:00:02]} Nf6 {[%emt 0:00:15]} 6. Ng5
{[%emt 0:00:04]} Be6 {[%emt 0:00:17]} 7. Bxe6 {[%emt 0:00:03]} fxe6 {[%emt 0:
00:02]} 8. Nxe6 {[%emt 0:00:04]} Qd7 {[%emt 0:00:07]} 9. Nxc5 {[%emt 0:00:02]}
dxc5 {[%emt 0:00:07]} 10. O-O {[%emt 0:00:03]} O-O-O {[%emt 0:00:14]} 11. b3 {
[%emt 0:00:12]} g5 {[%emt 0:00:22]} 12. Na4 {[%emt 0:00:07]} Na5 {[%emt 0:00:
31]} 13. Bb2 {[%emt 0:00:07]} g4 {[%emt 0:00:06]} 14. Bxe5 {[%emt 0:00:04]}
gxh3 {[%emt 0:00:09]} 15. gxh3 {[%emt 0:00:05]} Qe7 {[%emt 0:00:16]} 16. Bxf6 {
[%emt 0:00:10]} Qxf6 {[%emt 0:00:06]} 17. Nxc5 {[%emt 0:00:05]} Qg5+ {[%emt 0:
00:12]} 18. Kh2 {[%emt 0:00:06]} Qxc5 {[%emt 0:00:03]} 19. Qg4+ {[%emt 0:00:06]
} Kb8 {[%emt 0:00:07]} 20. Qf3 {[%emt 0:00:14]} Qe5+ {[%emt 0:00:05]} 21. Kg1 {
[%emt 0:00:04]} Rxd2 {[%emt 0:00:06]} 22. Rab1 {[%emt 0:00:07]} Rxc2 {[%emt 0:
00:04]} 23. b4 {[%emt 0:00:02]} Nc4 {[%emt 0:00:07]} 24. b5 {[%emt 0:00:04]}
Nd2 {[%emt 0:00:06]} 25. Qd3 {[%emt 0:00:10]} Nxf1 {[%emt 0:00:38]} 26. Qxc2 {
[%emt 0:00:04]} Qh2+ {[%emt 0:00:03]} 27. Kxf1 {[%emt 0:00:06]} Qh1+ {[%emt 0:
00:07]} 28. Ke2 {[%emt 0:00:02]} Qf3+ {[%emt 0:00:04]} 29. Kf1 {[%emt 0:00:04]}
Qxh3+ {[%emt 0:00:05]} 30. Ke2 {[%emt 0:00:03]} Qg4+ {[%emt 0:00:05]} 31. Ke3 {
[%emt 0:00:02]} Qh3+ {[%emt 0:00:05]} 32. Ke2 {[%emt 0:00:02]} Qg4+ {[%emt 0:
00:03]} 33. Kf1 {[%emt 0:00:02]} Qh3+ {[%emt 0:00:04]} 34. Kg1 {[%emt 0:00:02]}
Rg8# {[%emt 0:00:02] TopBrownCave won by checkmate} 0-1

[Event "Fast Chess"]
[Site "ChessKid.com"]
[Date "2020.04.09"]
[Round "2"]
[White "Georgiev, Maximilian"]
[Black "Dai, Lana"]
[Result "1-0"]
[ECO "C50"]
[WhiteElo "1419"]
[BlackElo "1245"]
[PlyCount "61"]
[EventDate "2020.??.??"]
[TimeControl "600"]
[WhiteClock "0:02:54"]
[BlackClock "0:07:39"]

1. e4 {[%emt 0:00:03]} e5 {[%emt 0:00:02]} 2. Nf3 {[%emt 0:00:01]} Nc6 {
[%emt 0:00:03]} 3. Bc4 {[%emt 0:00:00]} Bc5 {[%emt 0:00:05]} 4. d3 {[%emt 0:00:
02]} h6 {[%emt 0:00:04]} 5. O-O {[%emt 0:00:03]} d6 {[%emt 0:00:09]} 6. Nc3 {
[%emt 0:00:02]} Bg4 {[%emt 0:00:03]} 7. h3 {[%emt 0:00:04]} Bh5 {[%emt 0:00:02]
} 8. Bb5 {[%emt 0:00:06]} Nf6 {[%emt 0:00:11]} 9. Be3 {[%emt 0:00:05]} Bxe3 {
[%emt 0:00:06]} 10. fxe3 {[%emt 0:00:01]} O-O {[%emt 0:00:07]} 11. Qe1 {
[%emt 0:00:04]} Bxf3 {[%emt 0:00:08]} 12. Rxf3 {[%emt 0:00:01]} Nb4 {[%emt 0:
00:16]} 13. Rc1 {[%emt 0:00:11]} a6 {[%emt 0:00:14]} 14. Bc4 {[%emt 0:00:02]}
b5 {[%emt 0:00:16]} 15. Bb3 {[%emt 0:00:02]} a5 {[%emt 0:00:07]} 16. a4 {
[%emt 0:00:05]} bxa4 {[%emt 0:00:05]} 17. Nxa4 {[%emt 0:00:00]} c6 {[%emt 0:00:
19]} 18. Rg3 {[%emt 0:00:05]} d5 {[%emt 0:00:15]} 19. exd5 {[%emt 0:00:04]}
cxd5 {[%emt 0:00:01]} 20. e4 {[%emt 0:00:06]} dxe4 {[%emt 0:00:10]} 21. dxe4 {
[%emt 0:00:02]} Nc6 {[%emt 0:00:19]} 22. Rg6 {[%emt 0:00:06]} Nd4 {[%emt 0:00:
23]} 23. Bc4 {[%emt 0:00:07]} Rc8 {[%emt 0:00:11]} 24. b3 {[%emt 0:00:06]} Qe7
{[%emt 0:00:36]} 25. Qh4 {[%emt 0:00:08]} Qa7 {[%emt 0:00:20]} 26. Kf1 {
[%emt 0:00:08]} Ne8 {[%emt 0:00:45]} 27. Qxh6 {[%emt 0:00:05]} Qe7 {[%emt 0:00:
32]} 28. Rg3 {[%emt 0:00:14]} Nd6 {[%emt 0:00:29]} 29. Ba6 {[%emt 0:00:08]} Ra8
{[%emt 0:00:22]} 30. Bd3 {[%emt 0:00:06]} Rfd8 {[%emt 0:00:28]} 31. Qxg7# {
[%emt 0:00:06] TallSnazzyBall won by checkmate} 1-0

[Event "Fast Chess"]
[Site "ChessKid.com"]
[Date "2020.04.09"]
[Round "2"]
[White "Li, Patrick"]
[Black "Sasse, Gabriel"]
[Result "1-0"]
[ECO "C55"]
[WhiteElo "986"]
[BlackElo "1245"]
[PlyCount "24"]
[EventDate "2020.??.??"]
[TimeControl "600"]
[WhiteClock "0:09:34"]
[BlackClock "0:09:28"]

1. e4 {[%emt 0:00:00]} e5 {[%emt 0:00:00]} 2. Nf3 {[%emt 0:00:02]} Nc6 {
[%emt 0:00:01]} 3. Nc3 {[%emt 0:00:02]} Nf6 {[%emt 0:00:02]} 4. Bc4 {[%emt 0:
00:00]} h6 {[%emt 0:00:00]} 5. O-O {[%emt 0:00:03]} Bc5 {[%emt 0:00:02]} 6. h3
{[%emt 0:00:04]} O-O {[%emt 0:00:02]} 7. Bb5 {[%emt 0:00:04]} Ne8 {[%emt 0:00:
02]} 8. Bxc6 {[%emt 0:00:05]} dxc6 {[%emt 0:00:02]} 9. Nxe5 {[%emt 0:00:04]}
Qf6 {[%emt 0:00:05]} 10. Ng4 {[%emt 0:00:03]} Qg5 {[%emt 0:00:03]} 11. d4 {
[%emt 0:00:03]} Bb6 {[%emt 0:00:04]} 12. Bxg5 {[%emt 0:00:02]} hxg5 {[%emt 0:
00:03] WideClassyQuiz won by resignation} 1-0

[Event "Fast Chess"]
[Site "ChessKid.com"]
[Date "2020.04.09"]
[Round "3"]
[White "Li, Patrick"]
[Black "Georgiev, Maximilian"]
[Result "0-1"]
[ECO "B01"]
[WhiteElo "985"]
[BlackElo "1420"]
[PlyCount "56"]
[EventDate "2020.??.??"]
[TimeControl "600"]
[WhiteClock "0:07:33"]
[BlackClock "0:04:57"]

1. e4 {[%emt 0:00:05]} d5 {[%emt 0:00:01]} 2. f3 {[%emt 0:00:04]} dxe4 {
[%emt 0:00:02]} 3. fxe4 {[%emt 0:00:02]} Nf6 {[%emt 0:00:05]} 4. Nc3 {[%emt 0:
00:04]} Bg4 {[%emt 0:00:03]} 5. Nf3 {[%emt 0:00:06]} Nc6 {[%emt 0:00:03]} 6. h3
{[%emt 0:00:04]} Bh5 {[%emt 0:00:01]} 7. d3 {[%emt 0:00:13]} e6 {[%emt 0:00:03]
} 8. Qd2 {[%emt 0:00:04]} Bb4 {[%emt 0:00:05]} 9. a3 {[%emt 0:00:16]} Ba5 {
[%emt 0:00:02]} 10. Qf4 {[%emt 0:00:10]} O-O {[%emt 0:00:09]} 11. Qg3 {[%emt 0:
00:44]} Bg6 {[%emt 0:00:07]} 12. e5 {[%emt 0:00:08]} Nh5 {[%emt 0:00:05]} 13.
Qg4 {[%emt 0:00:07]} f6 {[%emt 0:00:09]} 14. exf6 {[%emt 0:00:08]} Nxf6 {
[%emt 0:00:02]} 15. Qc4 {[%emt 0:00:07]} a6 {[%emt 0:00:13]} 16. Qb3 {[%emt 0:
00:15]} Bf7 {[%emt 0:00:05]} 17. Qxb7 {[%emt 0:00:05]} Bxc3+ {[%emt 0:00:14]}
18. bxc3 {[%emt 0:00:08]} Na5 {[%emt 0:00:01]} 19. Qb2 {[%emt 0:00:14]} Rb8 {
[%emt 0:00:11]} 20. Qa2 {[%emt 0:00:06]} e5 {[%emt 0:00:02]} 21. c4 {[%emt 0:
00:21]} h6 {[%emt 0:00:10]} 22. Nxe5 {[%emt 0:00:05]} Re8 {[%emt 0:00:04]} 23.
Bb2 {[%emt 0:00:21]} Nd7 {[%emt 0:00:07]} 24. O-O-O {[%emt 0:00:16]} Nxe5 {
[%emt 0:00:04]} 25. Bxe5 {[%emt 0:00:04]} Rxe5 {[%emt 0:00:03]} 26. h4 {
[%emt 0:00:20]} g5 {[%emt 0:00:12]} 27. hxg5 {[%emt 0:00:06]} Qxg5+ {[%emt 0:
00:02]} 28. Rd2 {[%emt 0:00:19]} Re1# {[%emt 0:00:02] TallSnazzyBall won by
checkmate} 0-1

[Event "Fast Chess"]
[Site "ChessKid.com"]
[Date "2020.04.09"]
[Round "3"]
[White "Dai, Lana"]
[Black "Li, Tobias"]
[Result "1/2-1/2"]
[ECO "C58"]
[WhiteElo "1245"]
[BlackElo "1252"]
[PlyCount "120"]
[EventDate "2020.??.??"]
[TimeControl "600"]
[WhiteClock "0:03:02"]

1. e4 {[%emt 0:00:02]} e5 {[%emt 0:00:03]} 2. Nf3 {[%emt 0:00:03]} Nc6 {
[%emt 0:00:05]} 3. Bc4 {[%emt 0:00:07]} Nf6 {[%emt 0:00:05]} 4. Ng5 {[%emt 0:
00:08]} d5 {[%emt 0:00:02]} 5. exd5 {[%emt 0:00:04]} Na5 {[%emt 0:00:03]} 6.
Bb5+ {[%emt 0:00:11]} c6 {[%emt 0:00:03]} 7. dxc6 {[%emt 0:00:02]} bxc6 {
[%emt 0:00:01]} 8. Bd3 {[%emt 0:00:14]} h6 {[%emt 0:00:03]} 9. Nf3 {[%emt 0:00:
04]} Bc5 {[%emt 0:00:09]} 10. O-O {[%emt 0:00:30]} O-O {[%emt 0:00:03]} 11. Nc3
{[%emt 0:00:15]} Bg4 {[%emt 0:00:11]} 12. Na4 {[%emt 0:00:10]} Bd4 {[%emt 0:00:
23]} 13. h3 {[%emt 0:00:12]} Bh5 {[%emt 0:00:02]} 14. c3 {[%emt 0:00:38]} Bb6 {
[%emt 0:00:05]} 15. b4 {[%emt 0:00:06]} Nb7 {[%emt 0:00:12]} 16. Ba3 {[%emt 0:
00:08]} Re8 {[%emt 0:00:06]} 17. Nxb6 {[%emt 0:00:09]} Qxb6 {[%emt 0:00:10]}
18. c4 {[%emt 0:00:33]} c5 {[%emt 0:00:09]} 19. b5 {[%emt 0:00:28]} a6 {
[%emt 0:00:08]} 20. bxa6 {[%emt 0:00:07]} Rxa6 {[%emt 0:00:01]} 21. Rb1 {
[%emt 0:00:12]} Qc6 {[%emt 0:00:19]} 22. Bb2 {[%emt 0:00:26]} Rxa2 {[%emt 0:00:
43]} 23. Re1 {[%emt 0:00:31]} e4 {[%emt 0:00:52]} 24. Bxf6 {[%emt 0:00:24]}
gxf6 {[%emt 0:00:25]} 25. g4 {[%emt 0:00:40]} Bg6 {[%emt 0:00:18]} 26. Bc2 {
[%emt 0:00:31]} exf3 {[%emt 0:00:08]} 27. Rxe8+ {[%emt 0:00:06]} Qxe8 {[%emt 0:
00:03]} 28. Bxg6 {[%emt 0:00:07]} fxg6 {[%emt 0:00:04]} 29. Qxf3 {[%emt 0:00:
09]} Kg7 {[%emt 0:00:14]} 30. Qxb7+ {[%emt 0:00:04]} Qf7 {[%emt 0:00:04]} 31.
Qxf7+ {[%emt 0:00:08]} Kxf7 {[%emt 0:00:01]} 32. Rb7+ {[%emt 0:00:02]} Ke6 {
[%emt 0:00:04]} 33. Rb6+ {[%emt 0:00:07]} Kf7 {[%emt 0:00:03]} 34. Rb7+ {
[%emt 0:00:04]} Kg8 {[%emt 0:00:01]} 35. d3 {[%emt 0:00:12]} g5 {[%emt 0:00:09]
} 36. Rc7 {[%emt 0:00:12]} Rd2 {[%emt 0:00:03]} 37. Rxc5 {[%emt 0:00:12]} Rxd3
{[%emt 0:00:01]} 38. Rc8+ {[%emt 0:00:02]} Kg7 {[%emt 0:00:02]} 39. Rc7+ {
[%emt 0:00:02]} Kg6 {[%emt 0:00:01]} 40. Kg2 {[%emt 0:00:04]} Rc3 {[%emt 0:00:
02]} 41. Rc8 {[%emt 0:00:04]} f5 {[%emt 0:00:10]} 42. gxf5+ {[%emt 0:00:05]}
Kxf5 {[%emt 0:00:02]} 43. Rf8+ {[%emt 0:00:03]} Kg6 {[%emt 0:00:07]} 44. Rc8 {
[%emt 0:00:11]} Kf5 {[%emt 0:00:05]} 45. Rc5+ {[%emt 0:00:03]} Kg6 {[%emt 0:00:
05]} 46. Rc6+ {[%emt 0:00:04]} Kg7 {[%emt 0:00:02]} 47. Rc7+ {[%emt 0:00:03]}
Kg6 {[%emt 0:00:04]} 48. Rc6+ {[%emt 0:00:02]} Kf5 {[%emt 0:00:00]} 49. Rc5+ {
[%emt 0:00:04]} Ke6 {[%emt 0:00:01]} 50. Rc6+ {[%emt 0:00:04]} Kf7 {[%emt 0:00:
01]} 51. f3 {[%emt 0:00:07]} h5 {[%emt 0:00:07]} 52. Kg3 {[%emt 0:00:09]} h4+ {
[%emt 0:00:02]} 53. Kg4 {[%emt 0:00:04]} Ke7 {[%emt 0:00:05]} 54. f4 {[%emt 0:
00:13]} gxf4 {[%emt 0:00:02]} 55. Kxf4 {[%emt 0:00:03]} Rxh3 {[%emt 0:00:04]}
56. Rc7+ {[%emt 0:00:02]} Kd6 {[%emt 0:00:01]} 57. Rc8 {[%emt 0:00:06]} Ke7 {
[%emt 0:00:09]} 58. Rc7+ {[%emt 0:00:02]} Kd6 {[%emt 0:00:06]} 59. Rf7 {
[%emt 0:00:04]} Ke6 {[%emt 0:00:03]} 60. Rc7 {[%emt 0:00:02]} Kd6 {[%emt 0:00:
02] Game drawn by repetition} 1/2-1/2

[Event "Fast Chess"]
[Site "ChessKid.com"]
[Date "2020.04.10"]
[Round "1"]
[White "Rosenkranz, Benjamin"]
[Black "Georgiev, Maximilian"]
[Result "0-1"]
[ECO "B01"]
[WhiteElo "1153"]
[BlackElo "1351"]
[PlyCount "74"]
[EventDate "2020.??.??"]
[TimeControl "600"]
[WhiteClock "0:08:15"]
[BlackClock "0:07:08"]

1. e4 {[%emt 0:00:03]} d5 {[%emt 0:00:01]} 2. e5 {[%emt 0:00:04]} Nc6 {[%emt 0:
00:01]} 3. Nf3 {[%emt 0:00:04]} Bg4 {[%emt 0:00:04]} 4. Bb5 {[%emt 0:00:05]}
Bxf3 {[%emt 0:00:02]} 5. Qxf3 {[%emt 0:00:04]} a6 {[%emt 0:00:05]} 6. Bxc6+ {
[%emt 0:00:04]} bxc6 {[%emt 0:00:02]} 7. O-O {[%emt 0:00:05]} f6 {[%emt 0:00:
02]} 8. exf6 {[%emt 0:00:05]} Nxf6 {[%emt 0:00:02]} 9. Nc3 {[%emt 0:00:06]} e6
{[%emt 0:00:02]} 10. d3 {[%emt 0:00:04]} Be7 {[%emt 0:00:02]} 11. Bg5 {[%emt 0:
00:04]} O-O {[%emt 0:00:03]} 12. Rfe1 {[%emt 0:00:09]} h6 {[%emt 0:00:04]} 13.
Bxf6 {[%emt 0:00:05]} Rxf6 {[%emt 0:00:02]} 14. Qg3 {[%emt 0:00:05]} Bc5 {
[%emt 0:00:09]} 15. Na4 {[%emt 0:00:05]} Bxf2+ {[%emt 0:00:03]} 16. Qxf2 {
[%emt 0:00:06]} Rxf2 {[%emt 0:00:02]} 17. Kxf2 {[%emt 0:00:04]} Qh4+ {[%emt 0:
00:01]} 18. Kg1 {[%emt 0:00:05]} Qxa4 {[%emt 0:00:02]} 19. Rxe6 {[%emt 0:00:06]
} Qxc2 {[%emt 0:00:01]} 20. Re7 {[%emt 0:00:05]} Qxb2 {[%emt 0:00:03]} 21. Rf1
{[%emt 0:00:05]} Qxa2 {[%emt 0:00:02]} 22. Rxc7 {[%emt 0:00:04]} Qc2 {[%emt 0:
00:04]} 23. d4 {[%emt 0:00:06]} Qd3 {[%emt 0:00:05]} 24. Rxc6 {[%emt 0:00:04]}
Qxd4+ {[%emt 0:00:01]} 25. Kh1 {[%emt 0:00:07]} Qd3 {[%emt 0:00:06]} 26. Rg1 {
[%emt 0:00:04]} a5 {[%emt 0:00:06]} 27. h3 {[%emt 0:00:04]} a4 {[%emt 0:00:02]}
28. Rcc1 {[%emt 0:00:06]} a3 {[%emt 0:00:03]} 29. h4 {[%emt 0:00:04]} Qd4 {
[%emt 0:00:02]} 30. g4 {[%emt 0:00:07]} a2 {[%emt 0:00:04]} 31. Rgf1 {[%emt 0:
00:13]} a1=Q {[%emt 0:00:04]} 32. h5 {[%emt 0:00:00]} Qab2 {[%emt 0:00:05]} 33.
Ra1 {[%emt 0:00:00]} Rxa1 {[%emt 0:00:03]} 34. Rxa1 {[%emt 0:00:03]} Qxa1+ {
[%emt 0:00:03]} 35. Kg2 {[%emt 0:00:04]} Qd3 {[%emt 0:00:01]} 36. Kf2 {[%emt 0:
00:03]} Qa2+ {[%emt 0:00:01]} 37. Ke1 {[%emt 0:00:02]} Qdb1# {[%emt 0:00:01]
TallSnazzyBall won by checkmate} 0-1

[Event "Fast Chess"]
[Site "ChessKid.com"]
[Date "2020.04.10"]
[Round "1"]
[White "Li, Tobias"]
[Black "Li, Patrick"]
[Result "0-1"]
[ECO "C55"]
[WhiteElo "1240"]
[BlackElo "1002"]
[PlyCount "36"]
[EventDate "2020.??.??"]
[TimeControl "600"]
[WhiteClock "0:08:16"]
[BlackClock "0:08:23"]

1. e4 {[%emt 0:00:01]} e5 {[%emt 0:00:00]} 2. Nf3 {[%emt 0:00:02]} Nc6 {
[%emt 0:00:01]} 3. Nc3 {[%emt 0:00:01]} Nf6 {[%emt 0:00:04]} 4. Bc4 {[%emt 0:
00:01]} h6 {[%emt 0:00:04]} 5. d4 {[%emt 0:00:09]} exd4 {[%emt 0:00:06]} 6.
Nxd4 {[%emt 0:00:01]} Nxd4 {[%emt 0:00:04]} 7. Qxd4 {[%emt 0:00:01]} g6 {
[%emt 0:00:07]} 8. O-O {[%emt 0:00:07]} Bg7 {[%emt 0:00:01]} 9. Qd1 {[%emt 0:
00:06]} Ng4 {[%emt 0:00:05]} 10. Qxg4 {[%emt 0:00:05]} d5 {[%emt 0:00:01]} 11.
Qe2 {[%emt 0:00:12]} dxc4 {[%emt 0:00:02]} 12. Qxc4 {[%emt 0:00:03]} Be6 {
[%emt 0:00:05]} 13. Qb5+ {[%emt 0:00:13]} Bd7 {[%emt 0:00:11]} 14. Qxb7 {
[%emt 0:00:06]} Bxc3 {[%emt 0:00:19]} 15. bxc3 {[%emt 0:00:05]} Rb8 {[%emt 0:
00:04]} 16. Qa6 {[%emt 0:00:09]} Bb5 {[%emt 0:00:16]} 17. Qa3 {[%emt 0:00:17]}
Bxf1 {[%emt 0:00:05]} 18. Kxf1 {[%emt 0:00:00]} Qd1# {[%emt 0:00:09]
WideClassyQuiz won by checkmate} 0-1